Cogmind - Beta 14 @@@ ROGUE MODE // 2024.09.25 @ 18:39:12 Player: Some Pennies Result: Destroyed by OO-TZI(R) with Subdweller Beam Cannon Performance ------------- Evolutions (0) 0 Regions Visited (2) 400 Robots Destroyed (43) 215 Value Destroyed (1068) 1068 Prototype IDs (11) 220 Alien Tech Used (0) 0 Bonus (-67) -67 TOTAL SCORE: 1836 Bonus ------- Friendly Fire -67 Cogmind --------- Core Integrity 0/250 Matter 220/300 Energy 100/100 System Corruption 2% Temperature Cool (17) Movement Treading (160) Location -10/Subcaves Parts ------- > --- POWER (1) -------- Subdweller Power Source > --- PROPULSION (2) --- Light Treads Improved Treads > --- UTILITY (2) ------ Large Storage Unit Seismic Detector > --- WEAPON (2) ------- Subdweller Laser Subdweller Laser > --- INVENTORY (15) --- Makeshift Power Source Improved Treads Improved Treads Improved Treads Cooling System Medium Storage Unit Gun Armor Powered Cannon Heavy Assault Rifle Slug Cannon Subdweller Shrapnel Launcher Subdweller Shrapnel Launcher Multitool Ripper Peak State ------------ > --- POWER ------------ Makeshift Power Source > --- PROPULSION ------- Light Treads Improved Treads > --- UTILITY ---------- Large Storage Unit Seismic Detector > --- WEAPON ----------- Subdweller Laser Subdweller Laser > --- INVENTORY -------- Improved Treads Improved Treads Improved Treads Cooling System Medium Storage Unit Gun Armor Powered Cannon Heavy Assault Rifle Slug Cannon Subdweller Shrapnel Launcher Datajack Mining Laser Multitool [Rating: 17] Favorites ----------- Power Ion Engine Engine Ion Engine Propulsion Light Treads Treads Light Treads Utility Seismic Detector Device Seismic Detector Storage Large Storage Unit Weapon Assault Rifle Energy Gun Subdweller Laser Energy Cannon Beam Cannon Ballistic Gun Assault Rifle Launcher Subdweller Shrapnel Launcher Special Weapon Mining Laser Build | -11 -10 -10 ------- Run | Yrd Mat Sub Slots Evolved . | . . . Power . | . . . Propulsion . | . . . Utility . | . . . Weapon . | . . . Parts Attached 60 | 8 20 32 Power 6 | 1 2 3 Engine 6 | 1 2 3 Core . | . . . Reactor . | . . . Propulsion 11 | 2 4 5 Treads 11 | 2 4 5 Leg . | . . . Wheel . | . . . Hover . | . . . Flight . | . . . Utility 6 | 2 4 . Device 2 | 1 1 . Storage 4 | 1 3 . Processor . | . . . Hackware . | . . . Protection . | . . . Artifact . | . . . Weapon 37 | 3 10 24 Energy Gun 10 | 1 . 9 Energy Cannon 5 | . . 5 Ballistic Gun 12 | 2 8 2 Ballistic Cannon . | . . . Launcher 2 | . . 2 Special Weapon 8 | . 2 6 Impact Weapon . | . . . Slashing Weapon . | . . . Piercing Weapon . | . . . Special Melee Weapon . | . . . Unidentified Prototypes . | . . . Parts Lost 4 | . . 4 Power 2 | . . 2 Propulsion 2 | . . 2 Utility . | . . . Weapon . | . . . Highest Loss Streak 1 | . . 1 To Critical Strikes . | . . . Average Slot Usage (%) 99 | . 99 99 Engine 13 | . 14 13 Treads 27 | . 27 28 Device 14 | . 14 14 Storage 14 | . 14 14 Energy Gun 5 | . 1 10 Energy Cannon 4 | . . 7 Ballistic Gun 17 | . 26 8 Peak Build Rating 17 | 7 9 17 Average Rating 9 | 5 7 12 On Entrance 5 | . 7 9 Naked Turns . | . . . Heaviest Build 38 | 13 30 38 Greatest Support 43 | 40 40 43 Greatest Overweight (x) . | . . . Average Overweight (x) . | . . . Largest Inventory Capacity 15 | 8 15 15 Average Capacity 12 | 7 10 15 Most Carried 15 | 3 15 15 Average Carried 11 | 2 9 14 Final Capacity 15 | 8 15 15 Final Carried 15 | 3 15 15 Class Distribution -------------------- 100% | Mutant Dominant Class ---------------- Mutant | -10/Materials Mutant | -10/Subcaves Resources | -11 -10 -10 ----------- Run | Yrd Mat Sub Matter Collected 1413 | 285 505 623 Remotely . | . . . Salvage Created 1416 | 132 652 632 Parts 99 | 10 48 41 Haulers Intercepted 2 | . 2 . Recyclers Shooed 1 | . 1 . Parts Field Recycled . | . . . Retrieved Matter . | . . . Parts Self-Destructed 16 | . . 16 Prevented . | . . . Kills | -11 -10 -10 ------- Run | Yrd Mat Sub Combat Hostiles Destroyed 30 | . 12 18 Guns 24 | . 12 12 Cannons 4 | . . 4 AOE 2 | . . 2 Classes Destroyed 12 | 2 6 4 Worker 2 | . 2 . Tunneler 2 | 2 . . Hauler 2 | . 2 . Recycler 2 | 1 1 . Operator 1 | . 1 . Turret 1 | . . 1 Watcher 3 | . 3 . Swarmer 8 | . 6 2 Grunt 6 | . 6 . Sentry 1 | . . 1 Artisan 1 | . . 1 Subdweller 15 | . . 15 Best Kill Streak 3 | 2 3 3 Combat Bots Only 3 | . 3 3 Max Kills in Single Turn 2 | 1 1 2 Gunslinging . | . . . Exploded 2 | . . 2 Melee . | . . . Uniques/NPCs Destroyed . | . . . Combat | -11 -10 -10 -------- Run | Yrd Mat Sub Hostile Shots Fired 138 | . 64 74 Missed 43 | . 18 25 Damage Taken 1459 | . 432 1027 Core 251 | . 44 207 Absorbed by Shields . | . . . Regen/Repaired (Parts) 165 | . 165 . Core Remaining (%) 100 | 100 . . Volleys Fired 155 | 5 72 78 Largest 2 | 2 2 2 Hottest 120 | 60 100 120 Shots Fired 282 | 10 142 130 Gun 228 | 10 140 78 Cannon 28 | . . 28 Launcher 6 | . . 6 Special 20 | . 2 18 Kinetic 180 | 5 131 44 Thermal 102 | 5 11 86 Explosive . | . . . Electromagnetic . | . . . Robot Hit Streak 23 | 3 9 23 Robot Miss Streak 4 | 3 4 2 Penetration Max . | . . . Secondary Targets 2 | . 1 1 Max Gunslinging Chain 1 | . 1 1 Shots Hit Robots 175 | 5 85 85 Core Hits 75 | 4 34 37 Critical Kills . | . . . Critical Parts Destroyed . | . . . Critical Strikes . | . . . Melee Attacks . | . . . Impact . | . . . Slashing . | . . . Piercing . | . . . Sneak Attacks . | . . . Combat Hostiles . | . . . Follow-up Attacks . | . . . Damage Inflicted 3154 | 57 1080 2017 Guns 2132 | 57 1080 995 Cannons 407 | . . 407 Explosions 615 | . . 615 Melee . | . . . Ramming . | . . . Kinetic 2062 | 23 1007 1032 Thermal 1092 | 34 73 985 Explosive . | . . . Electromagnetic . | . . . Impact . | . . . Slashing . | . . . Piercing . | . . . Highest Corruption 2 | . 2 2 Average Corruption 2 | . 2 2 Corruption Purged . | . . . Corruption Blocked . | . . . Effects 46 | . 17 29 Message Errors 5 | . 2 3 Matter Fused 13 | . 7 6 Heat Flow Errors 6 | . 2 4 Energy Discharges 3 | . 1 2 Parts Rejected 1 | . . 1 Parts Fused 1 | . . 1 Data Loss (minor) 9 | . 3 6 Misfires 3 | . 1 2 Alerts 1 | . 1 . Weapon Failures 4 | . . 4 Overload Shots . | . . . Overflow Damage . | . . . Projectiles . | . . . Explosions . | . . . Melee . | . . . Knockbacks . | . . . Impact . | . . . Kinetic . | . . . Secondary . | . . . Self-Inflicted Damage . | . . . Shots . | . . . Rammed . | . . . Targets Rammed . | . . . Kicked . | . . . Crushed . | . . . Highest Temperature 246 | 20 239 246 Average Temperature 55 | 15 60 56 Received Heat Transfer 635 | . 120 515 Effects 1 | . . 1 Energy Bleed 1 | . . 1 Siege Activations . | . . . Robots Corrupted . | . . . Combat Hostiles . | . . . Parts Fried . | . . . Impact Corruptions . | . . . Robots Melted . | . . . Combat Hostiles . | . . . Parts Melted 4 | . 1 3 Heat Transferred 1801 | 75 175 1551 Parts Sabotaged . | . . . Parts Stolen . | . . . Parts Stripped . | . . . Power Chain Reactions . | . . . Alert | -11 -10 -10 ------- Run | Yrd Mat Sub Peak Influence 233 | 15 233 . Initial 9 | . 9 . Average 82 | 7 87 . Maximum Alert Level 1 | . 1 . Low Security (%) 89 | 100 88 . Level 1 10 | . 11 . Level 2 . | . . . Level 3 . | . . . Level 4 . | . . . Level 5 . | . . . High Security . | . . . Max Security . | . . . Squads Dispatched 3 | . 3 . Investigation 1 | . 1 . Extermination . | . . . Reinforcement 2 | . 2 . Assault . | . . . Garrison . | . . . Intercept . | . . . Searches Triggered . | . . . Construction Impeded . | . . . Haulers Reinforced . | . . . Active Scanning Responses . | . . . Cargo Convoy Interrupts . | . . . Stealth | -11 -10 -10 --------- Run | Yrd Mat Sub Distress Signals 1 | . 1 . Communications Jammed . | . . . Distress Signals . | . . . Times Spotted 49 | . 26 23 Peak Tracking Total 5 | . 5 3 Tactical Retreats 5 | . 2 3 Traps | -11 -10 -10 ------- Run | Yrd Mat Sub Traps Triggered 3 | . 3 . Indirectly . | . . . Trap Hack Attempts . | . . . Triggered . | . . . Disarmed . | . . . Reprogrammed . | . . . Reused . | . . . Traps Extracted . | . . . Installed . | . . . Triggered . | . . . Machines | -11 -10 -10 ---------- Run | Yrd Mat Sub Machines Disabled 4 | . . 4 Max in Single Turn 2 | . . 2 Machines Repaired . | . . . Machines Dismantled . | . . . Machines Sabotaged . | . . . Overloaded Fab Kills . | . . . Hacking | -11 -10 -10 --------- Run | Yrd Mat Sub Machines Accessed 8 | . 7 1 Terminals 6 | . 6 . Fabricators . | . . . Repair Stations 1 | . 1 . Recycling Units . | . . . Scanalyzers . | . . . Garrison Access . | . . . Total Hacks 40 | . 31 9 Successful 27 | . 18 9 Failed 13 | . 13 . Catastrophic 1 | . 1 . Database Lockouts . | . . . Manual 27 | . 27 . Terminals 26 | . 26 . Fabricators . | . . . Repair Stations 5 | . 5 . Recycling Units . | . . . Scanalyzers . | . . . Garrison Access . | . . . Terminal Hacks 16 | . 7 9 Record 8 | . . 8 Part Schematic 3 | . 3 . Robot Analysis 4 | . 4 . Derelict Proto ID Bank 1 | . . 1 Fabricator Hacks . | . . . Repair Station Hacks 4 | . 4 . Scan Component 2 | . 2 . Repair 2 | . 2 . Recycling Unit Hacks . | . . . Scanalyzer . | . . . Garrison Access Hacks . | . . . Unauthorized Hacks 7 | . 7 . Terminals 7 | . 7 . Botnet 2 | . 2 . Skim 5 | . 5 . Fabricators . | . . . Repair Stations . | . . . Recycling Units . | . . . Scanalyzers . | . . . Garrison Access . | . . . Data Cores Recovered . | . . . Used . | . . . Hacking Detections 7 | . 7 . Full Trace Events . | . . . Feedback Events . | . . . Feedback Blocked . | . . . Robot Schematics Acquired . | . . . Robots Built . | . . . Authchips . | . . . Time . | . . . Total Robot Build Rating . | . . . Part Schematics Acquired 3 | . 3 . Parts Built . | . . . Authchips . | . . . Time . | . . . Total Part Build Rating . | . . . Parts Repaired 2 | . 2 . Time 52 | . 52 . Parts Recycled . | . . . Recycled Matter . | . . . Retrieved Matter . | . . . Retrieved Components . | . . . Parts Scanalyzed . | . . . Part Schematics Acquired . | . . . Parts Damaged . | . . . Bothacking | -11 -10 -10 ------------ Run | Yrd Mat Sub Used RIF Installer . | . . . Robots Hacked . | . . . Non-combat . | . . . Combat . | . . . Robot Hacks Applied . | . . . Relay Couplers Released . | . . . Fabnet Peak Effective % . | . . . Robots Rewired . | . . . Allies Hacked . | . . . Hacks Repelled . | . . . Allies | -11 -10 -10 -------- Run | Yrd Mat Sub Total Allies . | . . . Largest Group . | . . . Highest-Rated Group . | . . . Highest-Rated Ally . | . . . Total Orders . | . . . Ally Attacks . | . . . Total Damage . | . . . Kills . | . . . Allies Corrupted . | . . . Allies Melted . | . . . Intel | -11 -10 -10 ------- Run | Yrd Mat Sub Robot Analysis Total 4 | . 4 . Derelict Logs Recovered 1 | . . 1 Drone Launches . | . . . Drone Recoveries . | . . . Exploration | -11 -10 -10 ------------- Run | Yrd Mat Sub Turns Passed 4119 | 128 1967 2024 Spaces Moved 2036 | 63 982 991 Core 2 | 2 . . Treads 2034 | 61 982 991 Legs . | . . . Wheels . | . . . Hover . | . . . Flight . | . . . Fastest Speed 50 | 50 160 160 Average Speed 159 | 156 160 160 Slowest Speed 160 | 160 160 160 Overloaded Moves . | . . . Propulsion Burnouts . | . . . Robots Hopped . | . . . Cave-ins Triggered . | . . . Exploration Rate (%) 50 | 4 99 49 Regions Visited 2 Branch Regions 1 Pre-discovered Areas 3 | . 1 2 Known Exits Taken 1 | . 1 . Unknown Exits Taken 1 | 1 . . Scrap Searched 9 | . . 9 Spaces Dug 2 | . 2 . Terrain Destroyed 68 | . 2 66 Melee . | . . . Projectile 2 | . 2 . AOE 66 | . . 66 Terrain Rammed . | . . . Walls Destroyed . | . . . Machines Disabled . | . . . Actions | -11 -10 -10 --------- Run | Yrd Mat Sub Total 2575 | 80 1236 1259 Wait 255 | 2 122 131 Move 2034 | 62 981 991 Hop . | . . . Pick Up 38 | 3 23 12 Fast Attach 14 | 7 3 4 Attach 4 | . 1 3 Detach . | . . . Swap 42 | 1 16 25 Drop 33 | . 18 15 Fire 155 | 5 72 78 Melee . | . . . Ram . | . . . Kick . | . . . Crush . | . . . Escape Stasis . | . . . Rewire . | . . . Trap . | . . . Miscellaneous . | . . . Route ------- -11/Scrapyard -10/Materials (discovered 6 exits: [*Mat x3] / [*Min x2] / *Sub) -10/Subcaves History --------- Turn | Location | Event 22 | -11/Scrapyard | Discovered new exit (range 15) 129 | -11/Scrapyard | Entered Materials 301 | -10/Materials | Build established: Mutant 338 | -10/Materials | Discovered new exit (range 16) 519 | -10/Materials | Discovered new exit (range 5) 805 | -10/Materials | Discovered new exit (range 14) 1074 | -10/Materials | Discovered new exit (range 12) 1190 | -10/Materials | Repaired Lgt. Treads 1217 | -10/Materials | Repaired Lgt. Treads 1637 | -10/Materials | Discovered new exit (range 16) 1739 | -10/Materials | Learned Storage trap positions 1777 | -10/Materials | Learned Storage trap positions 1778 | -10/Materials | Learned Storage emergency access door positions 1779 | -10/Materials | Learned location of Storage (-8) 1780 | -10/Materials | Identified exit to Subcaves 1816 | -10/Materials | Learned location of 1 exit from Recycling 2096 | -10/Materials | Entered Subcaves 2612 | -10/Subcaves | Learned location of Zion (-7) 2794 | -10/Subcaves | Ambushed by Subdwellers from Twisted Machinery 2826 | -10/Subcaves | Ambushed by Subdweller buried in earth 2974 | -10/Subcaves | Shifting Twisted Machinery released Battle Cannon 2987 | -10/Subcaves | Shifting Twisted Machinery released Mak. Power Source 3078 | -10/Subcaves | Visited 4L-MR0's lab 3100 | -10/Subcaves | Found Gun Armor 3306 | -10/Subcaves | Met a Zionite searching for "candidates" 3376 | -10/Subcaves | A Subdweller sparked back to life 3376 | -10/Subcaves | A Subdweller sparked back to life 3376 | -10/Subcaves | A Subdweller sparked back to life 3397 | -10/Subcaves | Found Powered Cannon 3578 | -10/Subcaves | A swath of the cavern ceiling suddenly collapsed 3846 | -10/Subcaves | Disturbed a concealed Subdweller 3946 | -10/Subcaves | Core integrity fell below 50% 4119 | -10/Subcaves | Core integrity fell below 20% 4120 | -10/Subcaves | Destroyed by OO-TZI(R) with Subdweller Beam Cannon Last Messages --------------- 03902_ Searching scrap... 03902_ Found Sub. Power Source. 03902_ Found Barrage Gun. 03902_ Found 41 Matter. 03905_ Searching scrap... 03905_ Found Barrage Gun. 03905_ Found 62 Matter. 03942_ ND-JMX(R) affixes Scrap Shield Fragment to Scrap Shield. 03947_ ND-JMX(R) destroyed. 03963_ Dropped Sub. Laser. 03984_ System corrupted: Component data lost. 04024_ Acquired 10 matter. 51-OQZ(R) emerges from concealment. 04101_ OO-TZI(R): "ARGHSUB!" 04113_ 14-QLP(R): "ARGHSUB!" 04117_ 14-QLP(R) destroyed. 04117_ Switching to secondary target: OO-TZI(R). 04118_ Sub. Power Source shoots sparks and powers down. Map ----- +----------------------------------------------------+ | ?????????????????????????????????# #####"" | | ?????????????????????????????????# #??##"" | | ????????????????????????????????## #?##""" # # | | ???????????????????????????????## ####"""" # | | ??????????????????????###????### ##?# # | | ?????????????????????## ###### #?# ## ## | | ????????????????????## # # ### ####? | | ??????????????####### # #### ##?#########???? | | ?????????????## # ## ##%"## ##??????????????? | | ?????????????# ##"[!"# #???????????????? | | ?????????????# #"%%%"# #???????????????? | | ?????????????# ### ### ##"[/[#|#???????????????? | | ?????????????## ###???# #|%|* #???????????????? | | ??????????????# ##???# ![%[& #???????????????? | | ?????????????## #???######&&###???????????????? | | ????????????## ####?####*[ " #???????????????? | | ????????????# ## ### ## " #???????????????? | | ????????????### " #???????????????? | | ??????????????## "##???????????????? | | ???????????????## # # ## # #????????????????? | | ????????????????# ### # ## #????????????????? | | ????????????????## "### #????????????????? | | ?????????????????# "#??##??######????????? | | ?????????????????# # #????### ##???????? | | ????????????????# #####; #???## ##??????? | | ????????????????## #???#@ *#???# ###????? | | ?????????????????####???##RR###### ##???? | | ????????????????????????##%!! ### ##??? | | ???????????????????????##[&! ###? | | ???????????????????##??# ## | | ?#?????????????????"% ?# ### # | | #???????????????? # ###?### # | | #??##????????????? #% ##?##??## # | | ### ##????????????? #?# #???## | | ###???????????? ### #????# | | % ??????????" #? #???## | | ???????#" ## ##??# ## | | " ???????# # #??# ### | | "" ????????# "" ## #??# ##?# | | "### ?????????#### ?## #???# %=### | | ##????????????????????? ??## ##???# # #" | | #????????????????????####???# ####????## | | #????????????????##### ###### ###????????## | | #???????????????## ## """## "##?????##????# " | | ????????????????# " [ " #?????# ##### #" | | ????????????????#"""""""" """ = ####??# = ## | | ????????????????## ####" "" ### ##?## ####? | | ?????????????########### "" #?# ### ####???? | | ?????????????# !*##*" "### #?????? | | ?????####??### """" "" "" ##?????? | +----------------------------------------------------+ Best States ------------- Heat Dissipation 25 Energy Generation 15 Energy Capacity 250 Matter Stores 300 Matter Capacity 300 Sight Range 16 Terrain Scan Density 10 Evasion (%) 40 Recoil Reduction 2 Item Schematics ----------------- Huge Storage Unit | -10/Materials | Hacked ECM Suite | -10/Materials | Hacked Lgt. Armor Plating | -10/Materials | Hacked Robot Schematics ------------------ None Fabricated ------------ Nothing Alien Tech Used ----------------- None Achievements -------------- None Challenges ------------ None Game ------ Seed SwarmTrapWings Manual? 0 Play Time 00:32:13 Cumulative 339.0 hours Start 2024.09.25 @ 17:57:10 End 2024.09.25 @ 18:39:12 Sessions 1 Manual Loads 0 Difficulty Rogue Special Mode None Game No. 242 Rogue 237 Adventurer 5 Explorer 0 Win Type - Total 7 Types 4/0/3/0/0/0/0/0/0 Lore% 67 Gallery% 85 Achievement% 69 Wizard Run 0 Options --------- Layout 2 ASCII 0 Keyboard 0 Movement Mouse Keybinds 0 Fullscreen 2 Font 24/Smallcaps Map View 50x44 Zoom Use 0% Tactical HUD 1 Map Filters NONE Filters NONE Steam 1 RUN: e5e2da38-4906-41be-8064-d146162eefdb